Cogmind - Beta 17 @@@ ROGUE MODE // 2026.07.20 @ 01:52:11 Player: Cereal Killer Result: Smashed by cave-in Performance ------------- Evolutions (0) 0 Regions Visited (1) 200 Robots Destroyed (11) 55 Value Destroyed (221) 221 Prototype IDs (1) 20 Alien Tech Used (0) 0 Bonus (5100) 5100 TOTAL SCORE: 5596 Bonus ------- Prayed to X0-1V1 5000 Major X0-1V1 Interference 100 Cogmind --------- Core Integrity 0/250 Matter 145/700 Energy 250/250 System Corruption 10% Temperature Cool (0) Movement Walking (190) Ox1 Location -10/Materials Parts ------- > --- POWER (1) -------- Ion Engine > --- PROPULSION (2) --- Aluminum Leg > --- UTILITY (4) ------ Improved Heat Sink Medium Storage Unit Terrain Scanner > --- WEAPON (1) ------- (None) > --- INVENTORY (10) --- Light Treads Aluminum Leg Wheel Wheel Small Storage Unit Light Assault Rifle Light Cannon Peak State ------------ > --- POWER ------------ Ion Engine > --- PROPULSION ------- Aluminum Leg Aluminum Leg > --- UTILITY ---------- Medium Storage Unit Improved Terrain Scanner X0-1V1's Piety Tracker > --- WEAPON ----------- Light Assault Rifle Light Assault Rifle > --- INVENTORY -------- Ion Engine Light Treads Aluminum Leg Wheel Wheel Improved Heat Sink Small Storage Unit Light Cannon Grenade Launcher [Rating: 23] Favorites ----------- Power Ion Engine Engine Ion Engine Propulsion Aluminum Leg Leg Aluminum Leg Utility X0-1V1's Piety Tracker Device X0-1V1's Piety Tracker Storage Medium Storage Unit Weapon Light Assault Rifle Ballistic Gun Light Assault Rifle Ballistic Cannon Light Cannon Launcher Grenade Launcher Build | -11 -10 ------- Run | Yrd Mat Slots Evolved . | . . Power . | . . Propulsion . | . . Utility . | . . Weapon . | . . Parts Attached 14 | 6 8 Power 2 | 1 1 Engine 2 | 1 1 Core . | . . Reactor . | . . Propulsion 2 | 2 . Treads . | . . Leg 2 | 2 . Wheel . | . . Hover . | . . Flight . | . . Utility 6 | 1 5 Device 4 | . 4 Storage 2 | 1 1 Processor . | . . Hackware . | . . Protection . | . . Artifact . | . . Weapon 4 | 2 2 Energy Gun . | . . Energy Cannon . | . . Ballistic Gun 2 | 2 . Ballistic Cannon 1 | . 1 Launcher 1 | . 1 Special Weapon . | . . Impact Weapon . | . . Slashing Weapon . | . . Piercing Weapon . | . . Special Melee Weapon . | . . Unidentified Prototypes 1 | . 1 Parts Lost 5 | . 5 Power . | . . Propulsion 1 | . 1 Utility 2 | . 2 Weapon 2 | . 2 Highest Loss Streak 3 | . 3 To Critical Strikes . | . . Average Backups 7 | 3 8 Power . | . . Propulsion 3 | 2 4 Utility 1 | . 1 Weapon 1 | 1 1 Tool/Special . | . . Unused Backups 6 | . 6 Power . | . . Propulsion 5 | . 5 Utility . | . . Weapon 1 | . 1 Tool/Special . | . . Average Slot Usage (%) 91 | . 91 Engine 13 | . 13 Leg 26 | . 26 Device 14 | . 14 Storage 13 | . 13 Ballistic Gun 16 | . 16 Ballistic Cannon 4 | . 4 Launcher 2 | . 2 Peak Build Rating 23 | 6 23 Average Rating 16 | 3 18 On Entrance 3 | . 6 Avg Prop Armor Cover (%) . | . . Naked Turns . | . . Heaviest Build 21 | 12 21 Greatest Support 20 | 20 20 Greatest Overweight (x) 1 | . 1 Average Overweight (x) . | . . Largest Inventory Capacity 10 | 8 10 Average Capacity 9 | 7 9 Most Carried 10 | 6 10 Average Carried 7 | 4 8 Final Capacity 10 | 8 10 Final Carried 7 | 6 7 Class Distribution -------------------- 100% | Mutant Dominant Class ---------------- Mutant | -10/Materials Resources | -11 -10 ----------- Run | Yrd Mat Matter Collected 468 | 180 288 Remotely . | . . Salvage Created 212 | . 212 Parts 23 | . 23 Haulers Intercepted 1 | . 1 Recyclers Shooed 1 | . 1 Parts Field Recycled . | . . Retrieved Matter . | . . Parts Self-Destructed . | . . Prevented . | . . Parts Restored . | . . Kills | -11 -10 ------- Run | Yrd Mat Combat Hostiles Destroyed 7 | . 7 Guns 3 | . 3 Cannons 2 | . 2 AOE 2 | . 2 Classes Destroyed 5 | . 5 Builder 2 | . 2 Tunneler 1 | . 1 Hauler 1 | . 1 Swarmer 3 | . 3 Grunt 4 | . 4 Best Kill Streak 3 | . 3 Combat Bots Only 2 | . 2 Max Kills in Single Turn 2 | . 2 Gunslinging . | . . Exploded 1 | . 1 Melee . | . . Uniques/NPCs Destroyed . | . . Combat | -11 -10 -------- Run | Yrd Mat Hostile Shots Fired 64 | . 64 Missed 22 | . 22 Hits 42 | . 42 Projectile 42 | . 42 Critical Strikes 1 | . 1 Damage Taken 916 | . 916 Core 287 | . 287 Absorbed by Shields . | . . Core Remaining (%) 100 | 100 . Volleys Fired 55 | . 55 Largest 2 | . 2 Hottest 50 | . 50 Shots Fired 84 | . 84 Gun 50 | . 50 Cannon 22 | . 22 Launcher 12 | . 12 Special . | . . Kinetic 72 | . 72 Thermal . | . . Explosive 12 | . 12 Electromagnetic . | . . Robot Hit Streak 6 | . 6 Robot Miss Streak 6 | . 6 Penetration Max . | . . Secondary Targets 1 | . 1 Max Gunslinging Chain 1 | . 1 Shots Hit Robots 37 | . 37 Core Hits 20 | . 20 Critical Kills . | . . Critical Parts Destroyed 1 | . 1 Critical Strikes 1 | . 1 Destroy 1 | . 1 Melee Attacks . | . . Impact . | . . Slashing . | . . Piercing . | . . Sneak Attacks . | . . Combat Hostiles . | . . Follow-up Attacks . | . . Damage Inflicted 696 | . 696 Guns 192 | . 192 Cannons 246 | . 246 Explosions 258 | . 258 Melee . | . . Ramming . | . . Kinetic 438 | . 438 Thermal . | . . Explosive 258 | . 258 Electromagnetic . | . . Impact . | . . Slashing . | . . Piercing . | . . Highest Corruption . | . . Average Corruption . | . . Corruption Purged . | . . Corruption Blocked . | . . Overload Shots . | . . Overflow Damage 4 | . 4 Projectiles . | . . Explosions 4 | . 4 Melee . | . . Knockbacks 6 | . 6 Impact . | . . Kinetic 6 | . 6 Secondary . | . . Self-Inflicted Damage 62 | . 62 Shots 5 | . 5 Rammed . | . . Targets Rammed . | . . Kicked . | . . Crushed . | . . Highest Temperature 70 | . 70 Average Temperature 35 | . 35 Received Heat Transfer 243 | . 243 Siege Activations . | . . Martial Activations . | . . Shielding Activations . | . . Robots Disrupted . | . . Combat Hostiles . | . . Robots Corrupted . | . . Combat Hostiles . | . . Parts Fried . | . . Impact Corruptions . | . . Robots Melted . | . . Combat Hostiles . | . . Parts Melted . | . . Heat Transferred . | . . Parts Sabotaged . | . . Parts Stolen . | . . Parts Stripped . | . . Power Chain Reactions . | . . Alert | -11 -10 ------- Run | Yrd Mat Maximum Alert Level . | . . Low Security (%) 100 | 100 100 Level 1 . | . . Level 2 . | . . Level 3 . | . . Level 4 . | . . Level 5 . | . . High Security . | . . Max Security . | . . Peak Influence 97 | . 97 Initial . | . . Average 41 | . 47 Influence Increases 247 | . 247 Destroy 0b10 Robot/C 140 | . 140 Destroy 0b10 Robot/NC 20 | . 20 Destroy Leader 32 | . 32 Successful Hack 5 | . 5 Disable Machine 15 | . 15 Destroy Structure 35 | . 35 Influence Decreases 247 | . 247 Time Decay 202 | . 202 Lost Part 45 | . 45 Squads Dispatched 1 | . 1 Investigation 1 | . 1 Extermination . | . . Reinforcement . | . . Assault . | . . Garrison . | . . Intercept . | . . Searches Triggered . | . . Construction Impeded . | . . Haulers Reinforced . | . . Active Scanning Responses . | . . Cargo Convoy Interrupts . | . . Stealth | -11 -10 --------- Run | Yrd Mat Distress Signals 2 | . 2 Communications Jammed . | . . Distress Signals . | . . Times Spotted 14 | . 14 Peak Tracking Total 4 | . 4 Tactical Retreats . | . . Traps | -11 -10 ------- Run | Yrd Mat Traps Triggered . | . . Indirectly . | . . Trap Hack Attempts . | . . Triggered . | . . Disarmed . | . . Reprogrammed . | . . Reused . | . . Traps Extracted . | . . Installed . | . . Triggered . | . . Machines | -11 -10 ---------- Run | Yrd Mat Machines Disabled 1 | . 1 Max in Single Turn 1 | . 1 Machines Repaired . | . . Machines Dismantled . | . . Machines Sabotaged . | . . Overloaded Fab Kills . | . . Hacking | -11 -10 --------- Run | Yrd Mat Machines Accessed 4 | . 4 Terminals 3 | . 3 Fabricators . | . . Repair Stations 1 | . 1 Recycling Units . | . . Scanalyzers . | . . Garrison Access . | . . Total Hacks 11 | . 11 Successful 5 | . 5 Failed 6 | . 6 Catastrophic 1 | . 1 Database Lockouts . | . . Manual 9 | . 9 Terminals 8 | . 8 Fabricators . | . . Repair Stations 3 | . 3 Recycling Units . | . . Scanalyzers . | . . Garrison Access . | . . Terminal Hacks 1 | . 1 Robot Analysis 1 | . 1 Fabricator Hacks . | . . Repair Station Hacks 1 | . 1 Scan Component 1 | . 1 Recycling Unit Hacks . | . . Scanalyzer . | . . Garrison Access Hacks . | . . Unauthorized Hacks 3 | . 3 Terminals 3 | . 3 Botnet 1 | . 1 Operators 1 | . 1 Search 1 | . 1 Fabricators . | . . Repair Stations . | . . Recycling Units . | . . Scanalyzers . | . . Garrison Access . | . . Data Cores Recovered . | . . Used . | . . Hacking Detections 3 | . 3 Full Trace Events 1 | . 1 Feedback Events . | . . Feedback Blocked . | . . Robot Schematics Acquired . | . . Robots Built . | . . Authchips . | . . Time . | . . Total Robot Build Rating . | . . Part Schematics Acquired . | . . Parts Built . | . . Authchips . | . . Time . | . . Total Part Build Rating . | . . Part Studies Acquired . | . . Parts Repaired . | . . Time . | . . Parts Recycled . | . . Recycled Matter . | . . Retrieved Matter . | . . Retrieved Components . | . . Parts Scanalyzed . | . . Part Schematics Acquired . | . . Parts Damaged . | . . Bothacking | -11 -10 ------------ Run | Yrd Mat Used RIF Installer . | . . Robots Hacked . | . . Non-combat . | . . Combat . | . . Robot Hacks Applied . | . . Relay Couplers Released . | . . Fabnet Peak Effective % . | . . Robots Rewired . | . . Allies Hacked . | . . Hacks Repelled . | . . Allies | -11 -10 -------- Run | Yrd Mat Total Allies . | . . Largest Group . | . . Highest-Rated Group . | . . Highest-Rated Ally . | . . Total Orders . | . . Ally Attacks . | . . Total Damage . | . . Kills . | . . Allies Corrupted . | . . Allies Melted . | . . X0-1V1 Amusement Gains 72 | . 72 Good Acts 3 | . 3 Bad Acts 3 | . 3 Intel | -11 -10 ------- Run | Yrd Mat Active Infowar (turns) 90 | . 90 Terrain 90 | . 90 Robot Analysis Total 1 | . 1 Derelict Logs Recovered . | . . Drone Launches . | . . Drone Recoveries . | . . Exploration | -11 -10 ------------- Run | Yrd Mat Turns Passed 531 | 62 469 Spaces Moved 301 | 46 255 Core 15 | 15 . Treads . | . . Legs 286 | 31 255 Wheels . | . . Hover . | . . Flight . | . . Fastest Speed 50 | 50 120 Average Speed 119 | 97 123 Slowest Speed 190 | 120 190 Overloaded Moves . | . . Propulsion Burnouts . | . . Robots Hopped . | . . Potential Cave-ins . | . . Cave-ins Triggered 1 | . 1 Exploration Rate (%) 21 | 2 40 Regions Visited 1 Branch Regions . Pre-discovered Areas . | . . Known Exits Taken . | . . Unknown Exits Taken 1 | 1 . Scrap Searched . | . . Spaces Dug . | . . Terrain Destroyed 43 | . 43 Melee . | . . Projectile . | . . AOE 43 | . 43 Terrain Rammed . | . . Walls Destroyed . | . . Machines Disabled . | . . Actions | -11 -10 --------- Run | Yrd Mat Total 397 | 63 334 Wait . | . . Move 300 | 45 255 Hop . | . . Pick Up 19 | 12 7 Fast Attach 1 | . 1 Attach 9 | 6 3 Detach . | . . Swap 9 | . 9 Drop 4 | . 4 Fire 55 | . 55 Melee . | . . Ram . | . . Kick . | . . Crush . | . . Escape Stasis . | . . Rewire . | . . Trap . | . . Miscellaneous . | . . Route ------- -11/Scrapyard -10/Materials (discovered 3 exits: [*Mat] / [*Min] / [*Sub]) History --------- Turn | Location | Event 10 | -11/Scrapyard | Discovered new exit (range 16) 63 | -11/Scrapyard | Entered Materials 115 | -10/Materials | Discovered new exit (range 7) 123 | -10/Materials | Prayed at D.C.S.S. Altar Unit 317 | -10/Materials | Build established: Mutant 324 | -10/Materials | Utility slot count permanently improved by X0-1V1 (+1) 400 | -10/Materials | Discovered new exit (range 10) 423 | -10/Materials | X0-1V1 activates XOMVISION 424 | -10/Materials | Discovered new exit (range 16) 473 | -10/Materials | X0-1V1 mutated your Weapon slot to Utility slot 533 | -10/Materials | Crushed by falling debris 533 | -10/Materials | Smashed by cave-in Last Messages --------------- Rating: 1 Time: 26 00496_ Acquired 1 matter. 00501_ Acquired Terrain Scanner. 00503_ X0-1V1: "Use it or lose it, I always say." 00503_ Aluminum Leg fused. 00509_ X0-1V1 is getting bored... 00528_ K-01 Serf collects debris. 00533_ The unstable cave ceiling collapses. 00533_ Crushed by falling debris. 00533_ Grenade Launcher destroyed. 00533_ System corrupted by crushing effect (+4). 00533_ Aluminum Leg destroyed. 00533_ System corrupted by crushing effect (+1). 00533_ X0-1V1's Piety Tracker destroyed. 00533_ X0-1V1 is mildly amused. 00533_ System corrupted by crushing effect (+5). 00533_ X0-1V1 is amused. 00533_ X0-1V1 giggles madly! Map ----- +----------------------------------------------------+ | | | | | | | | | | | | | | | | | | | | | | | | | | | ?????????????????????????????#??????? | | ?????????????????????????##?????????? | | ????????????????????????????????????? | | ??????????????????????????????####### | | ??????????????????????????????# # | | ???????????????????#####??????# ! # | | ??????????????????##"""#???#### # | | ?????????????????##"!!!"#??# # """ # | | ?????????????????#"" ""#?# # %R" # | | ?????????????????# ### """ # | | ?????????????????# < # | | ?????????????????# ####### | | ?????????????????# @ #????? | | ?????????????????## # #????? | | ??????????????????## ## #???? | | ?????############### #### ##???? | | #?###g######?? | | ?????########## #?# #?? | | ??????????????# #?# g "" #?? | | ??????????????# #?# g T" #?? | | ??????????????# #?# "" #?? | | ??????????????# ### #?? | | ??????????????# a + k"""! #?? | | ?????????????## ### """ #?? | | ?????????????# ###u#?# """ #?? | | ?????????????# T #?# #?# #?? | | ?????????????# "" #?# #?##########?? | | ?????????????# #?# #?#??????????? | | ?????????????# #?# #????????????? | | ?????????????## ##?# #??#?????????? | | ??????????????# #??# #????????????? | | ??????????????# #??# #??#?????????? | | ??????????????# #??# #????????????? | | ??????????????# #### ######???????? | | ??????????????## #?# ########???? | | ???????????????# ??# * #???? | | ???????????????# #?# " < #???? | +----------------------------------------------------+ Best States ------------- Heat Dissipation 39 Energy Generation 10 Energy Capacity 250 Matter Stores 255 Matter Capacity 700 Sight Range 16 Terrain Scan Range 16 Terrain Scan Density 10 Evasion (%) 55 Item Schematics ----------------- None Robot Schematics ------------------ None Fabricated ------------ Nothing Repaired ---------- Nothing Studied --------- None Alien Tech Used ----------------- None Achievements -------------- None Challenges ------------ None Game ------ Seed ReflexEfficiencyBattery Manual? 0 Play Time 00:08:08 Cumulative 328.0 hours Start 2026.07.20 @ 01:45:10 End 2026.07.20 @ 01:52:11 Sessions 1 Manual Loads 0 Difficulty Rogue Special Mode None Game No. 253 Rogue 244 Adventurer 9 Explorer 0 Win Type - Total 4 Types 3/0/0/1/0/0/0/0/0/0 Lore% 87 Gallery% 71 Achievement% 50 Wizard Run 0 Options --------- Layout 1 ASCII 0 Keyboard 0 Movement Numpad Keybinds 0 Fullscreen 1 Font 24/Smallcaps Map View 50x35 Zoom Use 0% Tactical HUD 1 Map Filters NONE Filters NONE Steam 1 RUN: 435f10b5-0592-44c6-9d40-e2ac2313d9a2